Cogmind - Beta 13 @@@ ROGUE MODE // 2024.05.20 @ 14:53:40 Player: GayPredator Result: Destroyed by Y-54 Guardian with Gatling Laser Performance ------------- Evolutions (0) 0 Regions Visited (4) 800 Robots Destroyed (17) 85 Value Destroyed (353) 353 Prototype IDs (1) 20 Alien Tech Used (0) 0 Bonus (132) 132 TOTAL SCORE: 1390 Bonus ------- Follower Combat Kills 132 Cogmind --------- Core Integrity 0/250 Matter 286/300 Energy 99/100 System Corruption 0% Temperature Cool (6) Movement Core (50) Location -7/Recycling Parts ------- > --- POWER (1) -------- (None) > --- PROPULSION (2) --- (None) > --- UTILITY (2) ------ Armored Scrap Engine > --- WEAPON (2) ------- (None) > --- INVENTORY (5) ---- Light Ion Engine Improved Heat Sink Structural Scanner Peak State ------------ > --- POWER ------------ Improved Deuterium Engine > --- PROPULSION ------- Treaded Spiked Exoskeleton > --- UTILITY ---------- Armored Scrap Engine > --- WEAPON ----------- Beamcaster Subdweller Machine Gun > --- INVENTORY -------- Light Ion Engine Improved Heat Sink Structural Scanner Grenade Launcher [Rating: 31] Favorites ----------- Power Ion Engine Engine Ion Engine Propulsion Light Treads Treads Light Treads Utility Small Storage Unit Device Improved Heat Sink Storage Small Storage Unit Processor Targeting Computer Protection Light Armor Plating Weapon Light Assault Rifle Energy Gun Medium Laser Energy Cannon Subdweller Beam Cannon Ballistic Gun Light Assault Rifle Launcher Grenade Launcher Build | -11 -10 -10 -10 -7 ------- Run | Yrd Mat Min Sub Rec Slots Evolved . | . . . . . Power . | . . . . . Propulsion . | . . . . . Utility . | . . . . . Weapon . | . . . . . Parts Attached 21 | 6 3 1 5 6 Power 2 | 1 . . . 1 Engine 2 | 1 . . . 1 Core . | . . . . . Reactor . | . . . . . Propulsion 4 | 2 . . 1 1 Treads 4 | 2 . . 1 1 Leg . | . . . . . Wheel . | . . . . . Hover . | . . . . . Flight . | . . . . . Utility 7 | 2 1 1 2 1 Device 3 | 1 . . 1 1 Storage 1 | 1 . . . . Processor 1 | . 1 . . . Hackware . | . . . . . Protection 2 | . . 1 1 . Artifact . | . . . . . Weapon 8 | 1 2 . 2 3 Energy Gun 3 | . 1 . 1 1 Energy Cannon 1 | . . . 1 . Ballistic Gun 3 | 1 1 . . 1 Ballistic Cannon . | . . . . . Launcher 1 | . . . . 1 Special Weapon . | . . . . . Impact Weapon . | . . . . . Slashing Weapon . | . . . . . Piercing Weapon . | . . . . . Special Melee Weapon . | . . . . . Unidentified Prototypes . | . . . . . Parts Lost 5 | . . . . 5 Power 2 | . . . . 2 Propulsion 1 | . . . . 1 Utility . | . . . . . Weapon 2 | . . . . 2 Highest Loss Streak 4 | . . . . 4 To Critical Strikes . | . . . . . Average Slot Usage (%) 96 | . 99 99 100 54 Engine 13 | . 14 14 14 11 Treads 26 | . 28 28 28 10 Device 1 | . . . 2 14 Storage 13 | . 14 14 14 1 Processor 5 | . 13 6 . . Protection 6 | . . 7 11 . Energy Gun 10 | . 4 14 14 7 Energy Cannon 4 | . . . 13 2 Ballistic Gun 11 | . 22 14 . 8 Naked Turns . | . . . . . Heaviest Build 24 | 12 13 16 24 21 Greatest Support 40 | 40 40 40 40 40 Greatest Overweight (x) 6 | . . . . 6 Average Overweight (x) . | . . . . 1 Largest Inventory Capacity 8 | 8 8 8 8 8 Average Capacity 7 | 7 8 8 8 5 Most Carried 8 | 3 8 8 8 8 Average Carried 7 | 2 6 8 7 3 Final Capacity 8 | 8 8 8 8 5 Final Carried 8 | 3 8 8 8 3 Scrap Engine Consumption 8 | . . . . 8 Constructs Created 1 | . . . . 1 Class Distribution -------------------- 86% | Mutant 10% | Derelict-Mutant Dominant Class ---------------- Mutant | -10/Materials Mutant | -10/Mines Mutant | -10/Subcaves Mutant | -7/Recycling Resources | -11 -10 -10 -10 -7 ----------- Run | Yrd Mat Min Sub Rec Matter Collected 662 | 273 118 65 151 55 Remotely . | . . . . . Salvage Created 537 | 82 223 44 122 66 Parts 29 | 5 11 7 4 2 Haulers Intercepted . | . . . . . Recyclers Shooed . | . . . . . Parts Field Recycled . | . . . . . Retrieved Matter . | . . . . . Parts Self-Destructed 8 | . . . 8 . Prevented . | . . . . . Kills | -11 -10 -10 -10 -7 ------- Run | Yrd Mat Min Sub Rec Combat Hostiles Destroyed 14 | . 6 3 4 1 Guns 13 | . 6 3 3 1 Cannons 1 | . . . 1 . Classes Destroyed 7 | 2 3 . 1 1 Worker 1 | . 1 . . . Tunneler 1 | 1 . . . . Recycler 1 | 1 . . . . Swarmer 8 | . 3 3 2 . Grunt 3 | . 3 . . . Sentry 1 | . . . . 1 Subdweller 2 | . . . 2 . Best Kill Streak 3 | 1 3 3 2 1 Combat Bots Only 3 | . 2 3 2 1 Max Kills in Single Turn 2 | 1 1 2 1 1 Gunslinging 1 | . . 1 . . Exploded . | . . . . . Melee . | . . . . . Uniques/NPCs Destroyed . | . . . . . Combat | -11 -10 -10 -10 -7 -------- Run | Yrd Mat Min Sub Rec Hostile Shots Fired 189 | . 39 13 11 126 Missed 56 | . 15 5 1 35 Damage Taken 1336 | . 245 59 194 838 Core 259 | . 23 13 53 170 Absorbed by Shields . | . . . . . Core Remaining (%) 100 | 100 . . . . Volleys Fired 76 | 13 32 5 12 14 Largest 2 | 1 2 2 2 2 Hottest 230 | 20 70 70 230 230 Shots Fired 126 | 13 64 10 21 18 Gun 108 | 13 64 10 9 12 Cannon 13 | . . . 12 1 Launcher 5 | . . . . 5 Special . | . . . . . Kinetic 70 | 13 46 5 . 6 Thermal 51 | . 18 5 21 7 Explosive 5 | . . . . 5 Electromagnetic . | . . . . . Robot Hit Streak 14 | 10 14 4 11 5 Robot Miss Streak 5 | 1 5 4 2 1 Penetration Max . | . . . . . Secondary Targets 1 | . . 1 . . Max Gunslinging Chain 1 | . . 1 . . Shots Hit Robots 81 | 12 39 5 13 12 Core Hits 34 | 4 15 3 5 7 Critical Kills . | . . . . . Critical Parts Destroyed . | . . . . . Critical Strikes 4 | . 2 1 1 . Burn 4 | . 2 1 1 . Melee Attacks . | . . . . . Impact . | . . . . . Slashing . | . . . . . Piercing . | . . . . . Sneak Attacks . | . . . . . Combat Hostiles . | . . . . . Follow-up Attacks . | . . . . . Damage Inflicted 1161 | 97 411 52 337 264 Guns 919 | 97 411 50 202 159 Cannons 163 | . . . 135 28 Explosions 66 | . . . . 66 Melee . | . . . . . Ramming 13 | . . 2 . 11 Kinetic 435 | 97 248 25 . 65 Thermal 647 | . 163 25 337 122 Explosive 66 | . . . . 66 Electromagnetic . | . . . . . Impact . | . . . . . Slashing . | . . . . . Piercing . | . . . . . Highest Corruption . | . . . . . Average Corruption . | . . . . . Corruption Purged . | . . . . . Corruption Blocked . | . . . . . Overload Shots 6 | . . . 4 2 Effects 2 | . . . 2 . Energy Bleed 2 | . . . 2 . Overflow Damage . | . . . . . Projectiles . | . . . . . Explosions . | . . . . . Melee . | . . . . . Knockbacks . | . . . . . Impact . | . . . . . Kinetic . | . . . . . Secondary . | . . . . . Self-Inflicted Damage 152 | . . . . 152 Shots 4 | . . . . 4 Rammed 9 | . 1 1 . 7 Targets Rammed 9 | . 1 1 . 7 Kicked . | . . . . . Crushed . | . . . . . Highest Temperature 365 | . 114 90 258 365 Average Temperature 82 | . 45 53 84 138 Received Heat Transfer 354 | . 96 . 54 204 Siege Activations . | . . . . . Robots Corrupted . | . . . . . Combat Hostiles . | . . . . . Parts Fried . | . . . . . Impact Corruptions . | . . . . . Robots Melted . | . . . . . Combat Hostiles . | . . . . . Parts Melted 4 | . 1 . 3 . Heat Transferred 1608 | . 629 148 633 198 Parts Sabotaged . | . . . . . Parts Stolen . | . . . . . Parts Stripped . | . . . . . Power Chain Reactions . | . . . . . Alert | -11 -10 -10 -10 -7 ------- Run | Yrd Mat Min Sub Rec Peak Influence 164 | 10 162 93 . 164 Initial 140 | . 6 23 . 140 Average 56 | 3 53 53 . 137 Maximum Alert Level . | . . . . . Low Security (%) 100 | 100 100 100 . 100 Level 1 . | . . . . . Level 2 . | . . . . . Level 3 . | . . . . . Level 4 . | . . . . . Level 5 . | . . . . . High Security . | . . . . . Max Security . | . . . . . Squads Dispatched 1 | . 1 . . . Investigation . | . . . . . Extermination . | . . . . . Reinforcement 1 | . 1 . . . Assault . | . . . . . Garrison . | . . . . . Intercept . | . . . . . Searches Triggered . | . . . . . Construction Impeded . | . . . . . Haulers Reinforced . | . . . . . Active Scanning Responses . | . . . . . Cargo Convoy Interrupts . | . . . . . Stealth | -11 -10 -10 -10 -7 --------- Run | Yrd Mat Min Sub Rec Distress Signals 2 | . 2 . . . Communications Jammed . | . . . . . Distress Signals . | . . . . . Times Spotted 34 | . 13 3 15 3 Peak Tracking Total 4 | . 4 3 3 2 Tactical Retreats 2 | . . . 2 . Traps | -11 -10 -10 -10 -7 ------- Run | Yrd Mat Min Sub Rec Traps Triggered 2 | . . . 2 . Indirectly . | . . . . . Trap Hack Attempts . | . . . . . Triggered . | . . . . . Disarmed . | . . . . . Reprogrammed . | . . . . . Reused . | . . . . . Traps Extracted . | . . . . . Installed . | . . . . . Triggered . | . . . . . Machines | -11 -10 -10 -10 -7 ---------- Run | Yrd Mat Min Sub Rec Machines Disabled 2 | . . . 1 1 Max in Single Turn 1 | . . . 1 1 Machines Repaired . | . . . . . Machines Dismantled . | . . . . . Machines Sabotaged . | . . . . . Overloaded Fab Kills . | . . . . . Hacking | -11 -10 -10 -10 -7 --------- Run | Yrd Mat Min Sub Rec Machines Accessed 4 | . 3 . . 1 Terminals 3 | . 2 . . 1 Fabricators . | . . . . . Repair Stations . | . . . . . Recycling Units 1 | . 1 . . . Scanalyzers . | . . . . . Garrison Access . | . . . . . Total Hacks 9 | . 8 . . 1 Successful 5 | . 4 . . 1 Failed 4 | . 4 . . . Catastrophic . | . . . . . Database Lockouts . | . . . . . Manual 9 | . 8 . . 1 Terminals 7 | . 6 . . 1 Fabricators . | . . . . . Repair Stations . | . . . . . Recycling Units 2 | . 2 . . . Scanalyzers . | . . . . . Garrison Access . | . . . . . Terminal Hacks . | . . . . . Fabricator Hacks . | . . . . . Repair Station Hacks . | . . . . . Recycling Unit Hacks 2 | . 2 . . . Report Inventory 1 | . 1 . . . Retrieve Components 1 | . 1 . . . Scanalyzer . | . . . . . Garrison Access Hacks . | . . . . . Unauthorized Hacks 3 | . 2 . . 1 Terminals 3 | . 2 . . 1 Botnet 3 | . 2 . . 1 Fabricators . | . . . . . Repair Stations . | . . . . . Recycling Units . | . . . . . Scanalyzers . | . . . . . Garrison Access . | . . . . . Data Cores Recovered . | . . . . . Used . | . . . . . Hacking Detections 4 | . 4 . . . Full Trace Events . | . . . . . Feedback Events . | . . . . . Feedback Blocked . | . . . . . Robot Schematics Acquired . | . . . . . Robots Built . | . . . . . Authchips . | . . . . . Time . | . . . . . Total Robot Build Rating . | . . . . . Part Schematics Acquired . | . . . . . Parts Built . | . . . . . Authchips . | . . . . . Time . | . . . . . Total Part Build Rating . | . . . . . Parts Repaired . | . . . . . Time . | . . . . . Parts Recycled . | . . . . . Recycled Matter . | . . . . . Retrieved Matter . | . . . . . Retrieved Components 2 | . 2 . . . Parts Scanalyzed . | . . . . . Part Schematics Acquired . | . . . . . Parts Damaged . | . . . . . Bothacking | -11 -10 -10 -10 -7 ------------ Run | Yrd Mat Min Sub Rec Used RIF Installer . | . . . . . Robots Hacked . | . . . . . Non-combat . | . . . . . Combat . | . . . . . Robot Hacks Applied . | . . . . . Relay Couplers Released . | . . . . . Fabnet Peak Effective % . | . . . . . Robots Rewired . | . . . . . Allies Hacked . | . . . . . Hacks Repelled . | . . . . . Allies | -11 -10 -10 -10 -7 -------- Run | Yrd Mat Min Sub Rec Total Allies 5 | . . 5 . . Largest Group 5 | . . 5 5 2 Highest-Rated Group 85 | . . 85 85 47 Highest-Rated Ally 31 | . . 31 31 31 Total Orders . | . . . . . Ally Attacks 52 | . . . 44 8 Total Damage 632 | . . . 532 100 Kills 7 | . . . 6 1 Allies Corrupted . | . . . . . Allies Melted . | . . . . . Intel | -11 -10 -10 -10 -7 ------- Run | Yrd Mat Min Sub Rec Robot Analysis Total . | . . . . . Derelict Logs Recovered 3 | . . 1 2 . Drone Launches . | . . . . . Drone Recoveries . | . . . . . Exploration | -11 -10 -10 -10 -7 ------------- Run | Yrd Mat Min Sub Rec Turns Passed 2170 | 125 563 678 667 137 Spaces Moved 1147 | 60 255 411 386 35 Core 25 | 8 . . . 17 Treads 1122 | 52 255 411 386 18 Legs . | . . . . . Wheels . | . . . . . Hover . | . . . . . Flight . | . . . . . Fastest Speed 50 | 50 160 160 160 50 Average Speed 159 | 145 160 160 160 179 Slowest Speed 350 | 160 160 160 160 350 Overloaded Moves . | . . . . . Propulsion Burnouts . | . . . . . Robots Hopped . | . . . . . Cave-ins Triggered . | . . . . . Exploration Rate (%) 38 | 5 49 94 33 9 Regions Visited 4 Branch Regions 3 Pre-discovered Areas 1 | . . 1 . . Known Exits Taken . | . . . . . Unknown Exits Taken 4 | 1 1 1 1 . Scrap Searched 6 | . . 1 5 . Spaces Dug . | . . . . . Terrain Destroyed 18 | . . . 2 16 Melee . | . . . . . Projectile 4 | . . . 2 2 AOE 14 | . . . . 14 Terrain Rammed . | . . . . . Walls Destroyed . | . . . . . Machines Disabled . | . . . . . Actions | -11 -10 -10 -10 -7 --------- Run | Yrd Mat Min Sub Rec Total 1366 | 85 355 422 415 89 Wait 83 | 4 58 4 3 14 Move 1143 | 59 254 410 385 35 Hop . | . . . . . Pick Up 13 | 3 4 . 3 3 Fast Attach 16 | 6 3 1 3 3 Attach 3 | . . . . 3 Detach 2 | . 2 . . . Swap 2 | . . . 2 . Drop 19 | . 1 1 7 10 Fire 76 | 13 32 5 12 14 Melee . | . . . . . Ram . | . . . . . Kick . | . . . . . Crush 9 | . 1 1 . 7 Escape Stasis . | . . . . . Rewire . | . . . . . Trap . | . . . . . Miscellaneous . | . . . . . Route ------- -11/Scrapyard -10/Materials (discovered 3 exits: [*Mat] / [*Min x2]) -10/Mines (discovered 3 exits: [*Mat x2] / [*Sub]) -10/Subcaves (discovered 2 exits: Mat / *Rec) -7/Recycling History --------- Turn | Location | Event 17 | -11/Scrapyard | Discovered new exit (range 16) 126 | -11/Scrapyard | Entered Materials 242 | -10/Materials | Discovered new exit (range 16) 303 | -10/Materials | Build established: Mutant 376 | -10/Materials | Discovered new exit (range 10) 673 | -10/Materials | Discovered new exit (range 5) 689 | -10/Materials | Entered Mines 689 | -10/Mines | Learned location of Storage (-7) 777 | -10/Mines | Discovered new exit (range 6) 1125 | -10/Mines | Discovered new exit (range 10) 1141 | -10/Mines | Assisted by bots powering up and referring to "LRC-V3" 1352 | -10/Mines | Discovered new exit (range 10) 1367 | -10/Mines | Entered Subcaves 1367 | -10/Subcaves | Accompanied by 5 allies 1372 | -10/Subcaves | Led the pair of lost Derelicts to an unsafe place 1420 | -10/Subcaves | Identified exit to Materials 1452 | -10/Subcaves | Learned Materials terminal intel 1975 | -10/Subcaves | Shifting Twisted Machinery released Sub. Laser 1988 | -10/Subcaves | Shifting Twisted Machinery released Riot Gun 2007 | -10/Subcaves | Discovered new exit (range 11) 2034 | -10/Subcaves | Entered Recycling 2034 | -7/Recycling | Accompanied by 2 allies 2039 | -7/Recycling | Found Scrap Engine 2069 | -7/Recycling | Core integrity fell below 50% 2159 | -7/Recycling | Core integrity fell below 20% 2171 | -7/Recycling | Destroyed by Y-54 Guardian with Gatling Laser Last Messages --------------- 02114_ Connecting with Terminal... 02114_ Current location identified: Recycling >>Trojan(Botnet) Trojan loaded successfully. Testing... Terminal linked with 0 systems. Awaiting botnet instructions. 02116_ Dropped Beamcaster. 02117_ Arm. Scrap Engine consumes Beamcaster. 02145_ Sub. Machine Gun destroyed. 02150_ The unstable cave ceiling collapses. 02150_ Matter Filter disabled. 02158_ Slammed into Y-54 Guardian. 02158_ Grenade Launcher destroyed. 02159_ Slammed into Y-54 Guardian. 02168_ Imp. Deuterium Engine destroyed. 02168_ Treaded Spiked Exoskeleton destroyed. 02168_ Arm. Scrap Engine damaged due to network destabilization (-5). 02170_ Acquired 4 matter. Map ----- +----------------------------------------------------+ | | | | | | | | | | | | | | | | | | | | | | | | | | | | | | | | | | | ??????????????????????????????????????????? | | ??????????????????????????????????????????? | | ?????????????#################????????????? | | ?????????????# """"" ##???????????? | | ?????????????# ""T"" Y%#???????????? | | ?????????????# % ! #???????????? | | ?????????????# ##???????????? | | ?????????????# ##????????????? | | ?????????????# r @ #????????????? | | ?????????????## #????????????? | | ?????????????# # #???????????? | | ??????????? #?????????? | | ?????????? """"" #?????????? | | ?????????? """""" #?????????? | | ?????????? # """"""" #????????? | | ??????????? ?# ?"""""" #????????? | | ??????????? ??# ?????""" #???????? | | ??????????????#??????? ##???????? | | ?????????????????????? #????????? | | ??????????????????????"#######+###????????? | | ??????????????????????"???????????????????? | | ??????????????????????????????????????????? | | ??????????????????????????????????????????? | | ??????????????????????????????????????????? | | ??????????????????????????????????????????? | | ??????????????????????????????????????????? | | ??????????????????????????????????????????? | | ??????????????????????????????????????????? | | ??????????????????????????????????????????? | | ??????????????????????????????????????????? | | ??????????????????????????????????????????? | | ??????????????????????????????????????????? | | ??????????????????????????????????????????? | +----------------------------------------------------+ Best States ------------- Heat Dissipation 39 Energy Generation 16 Energy Capacity 290 Matter Stores 300 Matter Capacity 300 Sight Range 16 Terrain Scan Range 16 Terrain Scan Density 10 Armor Coverage 150 Evasion (%) 50 Targeting Accuracy 5 Recoil Reduction 2 Item Schematics ----------------- None Robot Schematics ------------------ None Fabricated ------------ Nothing Alien Tech Used ----------------- None Achievements -------------- None Challenges ------------ None Game ------ Seed SapperAssembledSplitter Manual? 0 Play Time 00:15:27 Cumulative 119.0 hours Start 2024.05.20 @ 14:38:24 End 2024.05.20 @ 14:53:40 Sessions 1 Manual Loads 0 Difficulty Rogue Special Mode None Game No. 95 Rogue 56 Adventurer 32 Explorer 7 Win Type - Total 0 Types 0/0/0/0/0/0/0/0/0 Lore% 29 Gallery% 63 Achievement% 47 Wizard Run 0 Options --------- Layout 2 ASCII 0 Keyboard 0 Movement Numpad Keybinds 0 Fullscreen 2 Font 24/Smallcaps Map View 50x44 Zoom Use 0% Tactical HUD 1 Map Filters NONE Filters NONE Steam SD RUN: 9c9daf52-1394-48aa-a076-0bed3e9985fe